{"text_format":"2","workbook":"xlsx","n_sheets":5,"sheets":["Plan for gjennomkjøring","Tidsplan Lørdag","Puljer Lørdag","Tidsplan Søndag","Puljer Søndag"],"not_rendered":{"charts":0,"images":0,"macros":0,"external_links":0,"defined_names":0,"comments":0,"pivot_tables":0},"unopened":[],"bounds":{"document_bytes":16777216,"sheet_cells":100000,"run_cost":"one","rows_first":2000,"rows_last":500,"rows_between":2000,"halvings":0,"cell_chars":16384,"cell_head_chars":4096},"cells_cut":0,"cells_raw":0,"read":"whole","date_system":"1900"}

{"sheet":"Plan for gjennomkjøring","index":0,"n_rows":51,"n_cols":1,"rows_kept":51,"cut":false,"hidden":false,"merged":[]}
["LØRDAG 11. OKTOBER - TRENING OG KONKURRANSEPLAN"]
[]
["Plan for gjennomføring:"]
["Det er to grupper på hvert apparat samtidig i pulje 1. "]
["På noen apparater er det 2 dommersett."]
["Dersom en klubb er splittet er det fordi samme klasse må ha samme dommer."]
[]
["Hopp:"]
["Et dommersett. Avhengig av om de kjører på oppbygd hopp eller høy hest, så deles gruppen."]
[]
["Skranke:"]
["Ett dommersett. "]
["Alle 11 åringene kjører først, og så 12 åringene. "]
["I pulje 2 brukes kun 1 skranke."]
[]
["Bom:"]
["To dommersett i pulje 1, ett dommesett i pulje 2."]
["Oddetall gruppen kjører på bom 1 - 11 åringer"]
["Partall gruppen kjører på bom 2 - 12 åringer"]
["I pulje 2 brukes kun 1 bom."]
[]
["Frittstånde:"]
["To dommersett i pulje 1, ett dommersett i pulje 2.  Pulje 1: Oddetall gruppen starter først i hver rotasjon - 11 åringer"]
["Deretter kjøres det annenhver gymnast fra de to gruppene som er på frittstående samtidig."]
["Neste gymnast starter med en gang en gymnast er ferdig."]
[]
["SØNDAG 12. OKTOBER - TRENING OG OPPVISNINGSPLAN"]
[]
["Plan for gjennomføring:"]
["Det er to grupper på hvert apparat samtidig. "]
["Alle grupper får en klistremerkedommer som følger gruppen i alle apparater."]
[]
["Hopp:"]
["De 2 gruppene kan starte på hver sitt hopp dersom noen kjører oppbygd hopp og noen høy hest. Så bytter gruppen."]
["Dersom alle kjører samme hopp, starter oddetall grupper, og så kjører partall gruppen etterpå. "]
[]
["Skranke:"]
["Det kjøres i 2 skranker."]
["Oddetall grupper kjører i skranke 1."]
["Partall grupper kjører i skranke 2."]
[]
["Bom:"]
["Oddetall grupper kjører på bom 1."]
["Partall grupper kjører på bom 2."]
[]
["Frittstånde:"]
["Oddetall gruppen starter først i hver rotasjon"]
["Deretter kjøres det annenhver gymnast fra de to gruppene som er på frittstående samtidig."]
["Neste gymnast starter med en gang en gymnast er ferdig."]
["Er det mange uten musikk i en gruppe kjører de to og to samtidig på frittstående."]
["Dette avklares ved hver rotasjon. "]

{"sheet":"Tidsplan Lørdag","index":1,"n_rows":34,"n_cols":7,"rows_kept":34,"cut":false,"hidden":false,"merged":[]}
["LØRDAG 11. OKTOBER - TRENING OG KONKURRANSEPLAN"]
[]
["Pulje 1: Rekrutt"]
["Kl 08:45","Hallen åpner"]
["Kl 09:00-09:20","Generell oppvarming"]
["Kl 09:20-10:30","Fri oppvarming i apparatene"]
["Kl 09:50","Dommermøte"]
["Kl 10:35","Innmarsj og åpning pulje 1"]
["Kl 10:45","Konkurransestart"]
[]
["Rotasjon","HOPP","SKRANKE 1+2","BOM 1","BOM 2","FRITTSTÅENDE 1","FRITTSTÅENDE 2"]
["Dommer:","Nathalie ","Mihaela","Gine+Maia H","Maja BM","Martine+Karianne","Tuva+Helle"]
["Rotasjon 1: 10:45","Gruppe 1+2","Gruppe 3+4","Gruppe 5","Gruppe 6","Gruppe 7","Gruppe 8"]
["Rotasjon 2: ","Gruppe 7+8","Gruppe 1+2","Gruppe 3","Gruppe 4","Gruppe 5","Gruppe 6"]
["Rotasjon 3: ","Gruppe 5+6","Gruppe 7+8","Gruppe 1","Gruppe 2","Gruppe 3","Gruppe 4"]
["Rotasjon 4: ","Gruppe 3+4","Gruppe 5+6","Gruppe 7","Gruppe 8","Gruppe 1","Gruppe 2"]
[]
["Estimert Premieutdeling: 14:00"]
[]
["Pulje 2: Stige"]
["Kl 14:30-14:50","Generell oppvarming"]
["Kl 14:50-15:40","Fri oppvarming i apparatene"]
["Kl 15:15","Dommermøte"]
["Kl 15:45","Innmarsj og åpning pulje 2"]
["Kl 15:55","Konkurransestart"]
[]
["Konkurranseplan","HOPP","SKRANKE","BOM  ","FRITTSTÅENDE"]
["Dommer:","Nathalie+Tuva","Mihaela+Karianne","Maja BM+Gine+Maia H","Martine+Helle"]
["Rotasjon 1: ","Gruppe 9","Gruppe 10","Gruppe 11","Gruppe 12"]
["Rotasjon 2: ","Gruppe 12","Gruppe 9","Gruppe 10","Gruppe 11"]
["Rotasjon 3: ","Gruppe 11","Gruppe 12","Gruppe 9","Gruppe 10"]
["Rotasjon 4: ","Gruppe 10","Gruppe 11","Gruppe 12","Gruppe 9"]
[]
["Estimert Premieutdeling: 18:10"]

{"sheet":"Puljer Lørdag","index":2,"n_rows":128,"n_cols":11,"rows_kept":128,"cut":false,"hidden":false,"merged":[[65,0,65,4],[93,0,93,4],[93,6,93,10],[109,0,109,4],[109,6,109,10],[2,0,2,4],[2,6,2,10],[22,0,22,4],[22,6,22,10],[43,0,43,4],[43,6,43,10],[65,6,65,10]]}
["PULJE 1: Rekrutt"]
[]
["GRUPPE 1",{"$nulls":5},"GRUPPE 2"]
["STARTNR.","NAVN","KLUBB","Klasse","Musikk",null,"STARTNR.","NAVN","KLUBB","Klasse","Musikk"]
[null,"Bertine Hvidsten","Hokksund","Rekrutt 11 år","Ja",null,null,"Eiril Hansbø","Nordre Aker","Rekrutt 12 år","Ja"]
[null,"Leah Strysse","Hokksund","Rekrutt 11 år","Ja",null,null,"Julie Garnås","Nordre Aker","Rekrutt 12 år","Ja"]
[null,"Marisol Holt","Hokksund","Rekrutt 11 år","Ja",null,null,"Maria Jørstad","Nordre Aker","Rekrutt 12 år","Ja"]
[null,"Lili Kusztal","Asker","Rekrutt 11 år","Ja",null,null,"Celine Pedersen","Asker","Rekrutt 12 år","Ja"]
[null,"Othilia Quiroga Arkvik Strømquist","Asker","Rekrutt 11 år","Ja",null,null,"Eva Røkke","Asker","Rekrutt 12 år","Ja"]
[null,"Aslim Ada Yildirim","Asker","Rekrutt 11 år","Ja",null,null,"Hedda Cassandra Evjan","Asker","Rekrutt 12 år","Ja"]
[null,"Henriette Båheim Andresen","Asker","Rekrutt 11 år","Ja",null,null,"Lilly Margrethe Swane","Asker","Rekrutt 12 år","Ja"]
[null,"Ida Tretøy","Asker","Rekrutt 11 år","Nei",null,null,"Rani Marie Gjelsvik Rai","Asker","Rekrutt 12 år","Ja"]
[null,"Lea Nordstaa-Løkkeberg","Asker","Rekrutt oppv","Nei",null,null,"Sofiko Iremashvili","Asker","Rekrutt 12 år","Ja"]
[null,"Rhea Hazarika Dutta","Asker","Rekrutt oppv","Nei",null,null,"Vilde Sofie Bergmo Almstrøm","Asker","Rekrutt 12 år","Ja"]
[null,"Selma Langmoen","Asker","Rekrutt oppv","Nei",null,null,"Rebecca Yates","Asker","Rekrutt 12 år","Ja"]
[null,"Sofia Winter Kjøndal","Asker","Rekrutt oppv","Nei",null,null,"Mildrid Heyerdahl-Larsen","Asker","Rekrutt 12 år","Ja"]
[null,"Amalie Knudsen","Nordre Aker","Rekrutt 11 år","Ja",null,null,"Nuria Leipsland","Asker","Rekrutt 12 år","Nei"]
[null,"Emilie Gumælæ Horn","Nordre Aker","Rekrutt 11 år","Ja"]
[null,"Sophia Fagerholt Tangen","Nordre Aker","Rekrutt 11 år","Ja"]
[]
["Antall",{"$f":"COUNTA(B5:B20)","v":15},{"$nulls":4},"Antall",{"$f":"COUNTA(H5:H20)","v":13}]
[]
["GRUPPE 3 ",{"$nulls":5},"GRUPPE 4 "]
["STARTNR.","NAVN","KLUBB","Klasse","Musikk",null,"STARTNR.","NAVN","KLUBB","Klasse","Musikk"]
[null,"Mali Goa Diab","Drammen","Rekrutt 11 år","Ja",null,null,"Christel Tamara de Bryun Sandnes","Drøbak Frogn","Rekrutt 12 år","Ja"]
[null,"Noelle Kiani-Høljer","Drammen","Rekrutt 11 år","Ja",null,null,"Lucy Lu Papier Ellevseth","Drøbak Frogn","Rekrutt 12 år","Ja"]
[null,"Flawia Mroz","Drammen","Rekrutt 11 år","Ja",null,null,"Emily Noer","Drøbak Frogn","Rekrutt 12 år","Ja"]
[null,"Eva Koulikova","Drammen","Rekrutt 11 år","Ja",null,null,"Anabelle Christine Olderli-Muceba","Fredrikshald","Rekrutt 12 år","Ja"]
[null,"Mina Westby Jansen","Drammen","Rekrutt 11 år","Ja",null,null,"Henrikke Ernstine Rokita","Fredrikshald","Rekrutt 12 år","Ja"]
[null,"Aurora Ask Aronsen","Drammen","Rekrutt 11 år","Ja",null,null,"Marie Othilie  Løvereide","Fredrikshald","Rekrutt 12 år","Nei"]
[null,"Hedda Løfshus-Skaug","Drøbak Frogn","Rekrutt 11 år","Ja",null,null,"Hadicha Alieva","Lørenskog","Rekrutt 12 år","Ja"]
[null,"Isolde Dirro Odden","Drøbak Frogn","Rekrutt 11 år","Ja",null,null,"Sunniva Smenes Five","Drammen","Rekrutt 12 år","Ja"]
[null,"Mie Fornes Benserud","Drøbak Frogn","Rekrutt 11 år","Ja",null,null,"Mari Jetsmar Storhaug","Drammen","Rekrutt 12 år","Ja"]
[null,"Leonora Haug","Fredrikshald","Rekrutt 11 år","Ja",null,null,"Alina Blomquist Østborg","Drammen","Rekrutt 12 år","Ja"]
[null,"Olivia Andersen","Fredrikshald","Rekrutt 11 år","Nei",null,null,"Olivia Forbord","Drammen","Rekrutt 12 år","Ja"]
[null,"Elise Ormestad","Fredrikshald","Rekrutt 11 år","Nei",null,null,"Betthy Glimsholt","Drammen","Rekrutt 12 år","Ja"]
[null,"Emilie Holene","Nedre Glomma","Rekrutt 11 år","Nei"]
[null,"Olivia Granlund","Nedre Glomma","Rekrutt 11 år","Nei"]
[null,"Josefin Rexten-Persson","Lørenskog","Rekrutt 11 år","Ja"]
[null,"Elise Skarset-Kristiandsen","Lørenskog","Rekrutt 11 år","Ja"]
[]
["Antall",{"$f":"COUNTA(B25:B40)","v":16},{"$nulls":4},"Antall",{"$f":"COUNTA(H25:H40)","v":12}]
[]
["GRUPPE 5 ",{"$nulls":5},"GRUPPE 6"]
["STARTNR.","NAVN","KLUBB","Klasse","Musikk",null,"STARTNR.","NAVN","KLUBB","Klasse","Musikk"]
[null,"Sonja Heitmann-Young","Slemmestad","Rekrutt 11 år","Ja",null,null,"Louise Wettre Fuglevik","Gjelleråsen","Rekrutt 12 år","Ja"]
[null,"Eva Piantino","Slemmestad","Rekrutt 11 år","Nei",null,null,"Anna Gou","Askim","Rekrutt 12 år","Ja"]
[null,"Jenny Lundqvist","Slemmestad","Rekrutt 11 år","Nei",null,null,"Kiana Huseby","Askim","Rekrutt 12 år","Ja"]
[null,"Evelyn Moe Sibbern","Slemmestad","Rekrutt 11 år","Nei",null,null,"Matilde Skaugli Tomteberget","Løten","Rekrutt 12 år","Ja"]
[null,"Nora Sweetser Hindenes","Slemmestad","Rekrutt 11 år","Nei",null,null,"Thea Støversteen Engh","Løten","Rekrutt 12 år","Ja"]
[null,"Emma Hjulstad Bekkelien","Gjelleråsen","Rekrutt 11 år","Ja",null,null,"Maria Hansen","Slemmestad","Rekrutt 12 år","Ja"]
[null,"Mari Furuvald Sollid","Gjelleråsen","Rekrutt 11 år","Ja",null,null,"Isabella Sophie Hartjen","Slemmestad","Rekrutt 12 år","Ja"]
[null,"Melita Jurgilaite","Gjelleråsen","Rekrutt 11 år","Ja",null,null,"Henriette Kristine Ramnefjell","Slemmestad","Rekrutt 12 år","Ja"]
[null,"Alba Sanchez Kjerstad","Gjelleråsen","Rekrutt 11 år","Ja",null,null,"Maja Jacobsen","Slemmestad","Rekrutt 12 år","Ja"]
[null,"Tiffany Lif Gisladottir","Gjelleråsen","Rekrutt 11 år","Ja",null,null,"Aurora Eugenie Bjørnås Ingdal","Elverum","Rekrutt 12 år","Ja"]
[null,"Lila Belle Kielland Schumacher","Gjelleråsen","Rekrutt 11 år","Ja",null,null,"Nora Sandvold","Elverum","Rekrutt 12 år","Ja"]
[null,"Io Andresdatter Bach","Gjelleråsen","Rekrutt 11 år","Ja",null,null,"Emma Martha-Carolin Myhrer","Trøgstad ","Rekrutt 12 år","Ja"]
[null,"Wenjun Guo","Askim","Rekrutt 11 år","Nei"]
[null,"Elvira Smestad Viberg","Løten","Rekrutt 11 år","Ja"]
[null,"Selma Østli Hafslund","Løten","Rekrutt 11 år","Ja"]
[null,"Agnethe Skramstad-Berg","Løten","Rekrutt 11 år","Nei"]
[null,"Adelen Langtind Tronsgård","Elverum","Rekrutt 11 år","Ja"]
[]
["Antall",{"$f":"COUNTA(B46:B63)","v":17},{"$nulls":4},"Antall",{"$f":"COUNTA(H46:H63)","v":12}]
[]
["GRUPPE 7 ",{"$nulls":5},"GRUPPE 8 "]
["STARTNR.","NAVN","KLUBB","Klasse","Musikk",null,"STARTNR.","NAVN","KLUBB","Klasse","Musikk"]
[null,"Anna Østvold","Hoppensprett","Rekrutt 11 år","Ja",null,null,"Sofia Ducasse","Njård","Rekrutt 12 år","Ja"]
[null,"Alba Omvik-Grotkjær","Langhus","Rekrutt 11 år","Ja",null,null,"Molly Myhrer Kristiansen","Njård","Rekrutt 12 år","Ja"]
[null,"Ida Holst Queseth","Langhus","Rekrutt 11 år","Ja",null,null,"Isabel Vardan Canales","Njård","Rekrutt 12 år","Ja"]
[null,"Alma Mathisen Hollås","Langhus","Rekrutt 11 år","Nei",null,null,"Zelma Hanna Polgar","Njård","Rekrutt 12 år","Ja"]
[null,"Amalia Graunte","Langhus","Rekrutt 11 år","Nei",null,null,"Maria Joanna Krzeminska","Njård","Rekrutt 12 år","Ja"]
[null,"Ellinor Tangnes Ellingsen","Langhus","Rekrutt 11 år","Nei",null,null,"Julie Orre Willersrud","Njård","Rekrutt 12 år","Ja"]
[null,"Maria Tungen","Langhus","Rekrutt 11 år","Nei",null,null,"Mathilde Rosenlid ","Nordstrand","Rekrutt 12 år","Ja"]
[null,"Miranda Meholm Mathisen","Langhus","Rekrutt 11 år","Nei",null,null,"Michelle Mary Hamilton","Hoppensprett","Rekrutt 12 år","Ja"]
[null,"Nikoline Muribø","Langhus","Rekrutt 11 år","Nei",null,null,"Timeea Pop","Hoppensprett","Rekrutt 12 år","Ja"]
[null,"Vanessa De Biasi-Antonsen","Langhus","Rekrutt 11 år","Nei",null,null,"Emmeli Legrand","Hoppensprett","Rekrutt 12 år","Ja"]
[null,"Lilja Sigurdardottir","Njård","Rekrutt 11 år","Ja",null,null,"Otilie Bekkestuen","Hoppensprett","Rekrutt 12 år","Ja"]
[null,"Andrea Eidem Christiensen","Njård","Rekrutt 11 år","Ja"]
[null,"Emily Polenta","Njård","Rekrutt 11 år","Ja"]
[null,"Maria Amar Grønaas","Njård","Rekrutt 11 år","Ja"]
[null,"Agnes Josefine Myhrvold","Nordstrand","Rekrutt 11 år","Ja"]
[null,"Noelle  Benkow","Nordstrand","Rekrutt 11 år","Ja"]
[null,"Isabelle Benkow","Nordstrand","Rekrutt 11 år","Ja"]
[]
["Antall",{"$f":"COUNTA(B68:B85)","v":17},{"$nulls":4},"Antall",{"$f":"COUNTA(H68:H85)","v":11}]
[]
[]
["Totalt antall gymnaster",{"$f":"+B21+H21+B42+H42+B64+H64+B86+H86","v":113}]
[]
[]
["PULJE 2: Stige"]
[]
["GRUPPE 9 ",{"$nulls":5},"GRUPPE 10"]
["STARTNR.","NAVN","KLUBB","Klasse","Musikk",null,"STARTNR.","NAVN","KLUBB","Klasse","Musikk"]
[null,"Linnea Quale Øvergaard","Asker","Klasse I","Ja",null,null,"Amelia Gajdamowicz","Askim","Klasse I","Ja"]
[null,"Shriya Danve","Asker","Klasse I","Ja",null,null,"Tiril Vannebo","Askim","Klasse I","Ja"]
[null,"Saachi Sahajpal","Asker","Klasse I","Ja",null,null,"Emmy Olsen","Askim","Klasse I","Ja"]
[null,"Cornelia Olstad Andreassen","Asker","Klasse I","Ja",null,null,"Sara Aissaoui","Askim","Klasse II","Ja"]
[null,"Isabel Adams","Asker","Klasse I","Ja",null,null,"Lotte Elise Døving Lintho","Askim","Klasse II","Ja"]
[null,"Simone Diepens","Trøgstad ","Klasse I","Ja",null,null,"Mari Christoffersen","Askim","Klasse II","Ja"]
[null,"Isabell Østreng-Unnli","Trøgstad ","Klasse I","Ja",null,null,"Ida Aline Wahlstrøm","Fredrikshald","Klasse I","Ja"]
[null,"Sofie Sivesind Ølstørn","Asker","Klasse II","Ja",null,null,"Emine Saxrud","Fredrikshald","Klasse I","Ja"]
[null,"Isabelle Washington","Asker","Klasse III","Ja",null,null,"Ellinor Beate Jensen","Fredrikshald","Klasse I","Ja"]
[null,"Berthe Rove","Asker","Klasse III","Ja",null,null,"Ea Elise Bøhn-Kristiansen","Fredrikshald","Klasse I","Nei"]
[{"$nulls":7},"Linnea Rosseid","Elverum","Klasse I","Ja"]
[]
["Antall",{"$f":"COUNTA(B96:B105)","v":10},{"$nulls":4},"Antall",{"$f":"COUNTA(H96:H107)","v":11}]
[]
["GRUPPE 11 ",{"$nulls":5},"GRUPPE 12"]
["STARTNR.","NAVN","KLUBB","Klasse","Musikk",null,"STARTNR.","NAVN","KLUBB","Klasse","Musikk"]
[null,"Milla Zoe Gorman","Drammen","Klasse I","Ja",null,null,"Celine Amlie Brenna","Njård","Klasse I","Ja"]
[null,"Ella Vee Akselsen","Drammen","Klasse I","Ja",null,null,"Mathilde Jarmund Blandhol","Njård","Klasse I","Ja"]
[null,"Lisa Midje","Drammen","Klasse I","Ja",null,null,"Fredrikke Ramm Haagensen","Njård","Klasse I","Ja"]
[null,"Yeseniia Heyenko","Drøbak Frogn","Klasse I","Ja",null,null,"Alba Holst Haanes","Njård","Klasse I","Ja"]
[null,"Thea Aakermann","Drøbak Frogn","Klasse I","Ja",null,null,"Ulrikke Langeland Frantsvold","Njård","Klasse I","Ja"]
[null,"Hedvig Dokka Del Pozo","Nordre Aker","Klasse I","Ja",null,null,"Tuva Klaveness Søndrål","Njård","Klasse I","Ja"]
[null,"Julie Marie Pedersen","Nordre Aker","Klasse I","Ja",null,null,"Nora Myrvold","Løten","Klasse I","Ja"]
[null,"Jake Pozar","Nordre Aker","Klasse I","Ja",null,null,"Ea Myrvold","Løten","Klasse I","Ja"]
[null,"Pernille Lund Tandberg","Nordre Aker","Klasse I","Ja",null,null,"Lise Storsveen","Løten","Klasse I","Ja"]
[null,"Thu Mai Dang","Lørenskog","Klasse I","Ja",null,null,"Angelica Brustad","Slemmestad","Klasse I","Ja"]
[null,"Hanelle Thorsen Aabø","Nordre Aker","Klasse II","Ja"]
[]
["Antall",{"$f":"COUNTA(B112:B123)","v":11},{"$nulls":4},"Antall",{"$f":"COUNTA(H112:H123)","v":10}]
[]
[]
["Totalt antall pulje 2",null,{"$f":"+B108+H108+B124+H124","v":42}]
["Totalt antall lørdag",null,{"$f":"+B89+C127","v":155}]

{"sheet":"Tidsplan Søndag","index":3,"n_rows":37,"n_cols":7,"rows_kept":37,"cut":false,"hidden":false,"merged":[[16,1,16,3],[33,1,33,3]]}
["SØNDAG 12. OKTOBER - TRENING OG OPPVISNINGSPLAN"]
[]
["Pulje 1: Aspirantoppvisning "]
["Kl 09:15","Hallen åpner"]
["Kl 09:30-09:50","Generell oppvarming"]
["Kl 09:50-10:50","Fri oppvarming i apparatene"]
["Kl 10:10","Dommermøte klistremerkedommere"]
["Kl 10:55","Innmarsj og åpning pulje 1"]
["Kl 11:05","Oppvisning"]
[]
["Rotasjon","HOPP","SKRANKE 1","SKRANKE 2","BOM 1","BOM 2","FRITTSTÅENDE"]
["Rotasjon 1: 11:05","Gruppe 1+2","Gruppe 3","Gruppe 4","Gruppe 5","Gruppe 6","Gruppe 7+8"]
["Rotasjon 2: ","Gruppe 7+8","Gruppe 1","Gruppe 2","Gruppe 3","Gruppe 4","Gruppe 5+6"]
["Rotasjon 3: ","Gruppe 5+6","Gruppe 7","Gruppe 8","Gruppe 1","Gruppe 2","Gruppe 3+4"]
["Rotasjon 4: ","Gruppe 3+4","Gruppe 5","Gruppe 6","Gruppe 7","Gruppe 8","Gruppe 1+2"]
[]
["8 klistremerkedommere følger hver sin gruppe"]
[]
["Estimert Premieutdeling: 13:40"]
[]
["Pulje 2: Aspirantoppvisning"]
["Kl 14:00-14:20","Generell oppvarming"]
["Kl 14:20-15:20","Fri oppvarming i apparatene"]
["Kl 14:55","Dommermøte klistremerkedommere"]
["Kl 15:25","Innmarsj og åpning pulje 2"]
["Kl 15:35","Oppvisning"]
[]
["Rotasjon","HOPP","SKRANKE 1","SKRANKE 2","BOM 1","BOM 2","FRITTSTÅENDE"]
["Rotasjon 1: 15:35","Gruppe 9+10","Gruppe 11 ","Gruppe 12","Gruppe 13","Gruppe 14","Gruppe 15+16"]
["Rotasjon 2: ","Gruppe 15+16","Gruppe 9","Gruppe10","Gruppe 11 ","Gruppe 12","Gruppe 13+14"]
["Rotasjon 3: ","Gruppe 13+14","Gruppe 15","Gruppe 16","Gruppe 9","Gruppe10","Gruppe 11+12"]
["Rotasjon 4: ","Gruppe 11+12","Gruppe 13","Gruppe 14","Gruppe 15","Gruppe 16","Gruppe 9+10"]
[]
["8 klistremerkedommere følger hver sin gruppe"]
[]
[]
["Estimert Premieutdeling: 18:10"]

{"sheet":"Puljer Søndag","index":4,"n_rows":185,"n_cols":11,"rows_kept":185,"cut":false,"hidden":false,"merged":[[2,0,2,4],[2,6,2,10],[23,0,23,4],[23,6,23,10],[45,0,45,4],[45,6,45,10],[67,6,67,10],[155,0,155,4],[155,6,155,10],[67,0,67,4],[92,0,92,4],[92,6,92,10],[115,0,115,4],[115,6,115,10],[135,0,135,4],[135,6,135,10]]}
["PULJE 1: Aspirantoppvisning"]
[]
["GRUPPE 1 ",{"$nulls":5},"GRUPPE 2 "]
["STARTNR.","NAVN","KLUBB","Klasse","Musikk",null,"STARTNR.","NAVN","KLUBB","Klasse","Musikk"]
[null,"Anna Kari Røkke","Asker","Aspirant","Ja",null,null,"Linh Anh Dang","Lørenskog","Aspirant","Ja"]
[null,"Ida Malen Waack Bergdahl","Asker","Aspirant","Ja",null,null,"Jayden Olivia Phillips","Lørenskog","Aspirant","Ja"]
[null,"Sofie Marthinussen","Asker","Aspirant","Ja",null,null,"Madeleine Rexten-Persson","Lørenskog","Aspirant","Ja"]
[null,"Eline Fossen Kielland","Asker","Aspirant","Ja",null,null,"Alexandra Maria Dinele","Lørenskog","Aspirant","Nei"]
[null,"Leonora Quiroga Arkvik Strømquist","Asker","Aspirant","Ja",null,null,"Amanda Holmberget","Lørenskog","Aspirant","Nei"]
[null,"Alba Olivia Bækken","Asker","Aspirant","Nei",null,null,"Mila Putney Molander","Njård","Aspirant","Nei"]
[null,"Elsa Paaske Løvli","Asker","Aspirant","Nei",null,null,"Ingrid Leganger Tveit","Njård","Aspirant","Nei"]
[null,"Selma Blåsternes","Asker","Aspirant","Nei",null,null,"Tilde Klaveness Søndrål","Njård","Aspirant","Nei"]
[null,"Eleah Heyerdahl-Larsen","Asker","Aspirant","Nei",null,null,"Elise Marlene Hopstad","Njård","Aspirant","Nei"]
[null,"Bim Juno Persson","Asker","Aspirant","Nei",null,null,"Sofia Catelen","Njård","Aspirant","Nei"]
[null,"Karla Karper","Asker","Aspirant","Nei",null,null,"Hannelise Langseth","Njård","Aspirant","Nei"]
[null,"Live Marsteng Kindberg","Asker","Aspirant","Nei",null,null,"Elsa Haakonsen Sylliåsen","Njård","Aspirant","Nei"]
[null,"Lova Øyra","Asker","Aspirant","Nei",null,null,"Olivia Osa","Njård","Aspirant","Nei"]
[null,"Ottilie Wood","Asker","Aspirant","Nei",null,null,"Amélie Indergård-Medle","Njård","Aspirant","Nei"]
[null,"Viktorie Suchankova","Asker","Aspirant","Nei",null,null,"Lucja Gryka","Njård","Aspirant","Nei"]
[{"$nulls":7},"Louise Kaarstein Moan","Njård","Aspirant","Nei"]
[]
["Antall",{"$f":"COUNTA(B5:B21)","v":15},{"$nulls":4},"Antall",{"$f":"COUNTA(H5:H21)","v":16}]
[]
["GRUPPE 3 ",{"$nulls":5},"GRUPPE 4 "]
["STARTNR.","NAVN","KLUBB","Klasse","Musikk",null,"STARTNR.","NAVN","KLUBB","Klasse","Musikk"]
[null,"Isabel Evelyn Aarø Blank","Oslo","Aspirant","Nei",null,null,"Lilly Gia Nhi Pham","Nordstrand","Aspirant","Ja"]
[null,"Åsa Bergendal Nordby","Oslo","Aspirant","Nei",null,null,"Johanne Bøe Grydeland","Nordstrand","Aspirant","Ja"]
[null,"Aili Zhou Thomassen","Oslo","Aspirant","Nei",null,null,"Anna Johanne Nilsen","Nordstrand","Aspirant","Ja"]
[null,"Frida Førsund Midtstigen","Oslo","Aspirant","Nei",null,null,"Mina Alice Østlie Nilsen","Nordstrand","Aspirant","Ja"]
[null,"Isabelle Mai","Oslo","Aspirant","Nei",null,null,"Lily Samoa Skaug Polanco","Nordstrand","Aspirant","Ja"]
[null,"Alma Louise Meberg Gilbrant","Oslo","Aspirant","Nei",null,null,"Amalie Marie Wiquist","Nordstrand","Aspirant","Ja"]
[null,"Annie Thordén-Dyrset","Oslo","Aspirant","Nei",null,null,"Francine Elise Anonuevo Lindstrøm","Nordstrand","Aspirant","Nei"]
[null,"Penny Huguet","Oslo","Aspirant","Nei",null,null,"Ida Ass Lund","Nordstrand","Aspirant","Nei"]
[null,"Vilje Frey","Oslo","Aspirant","Nei",null,null,"Anna Sørfonden","Nordstrand","Aspirant","Nei"]
[null,"Tuva Rummelhoff","Oslo","Aspirant","Nei",null,null,"Ella Marie Andersson Kongerud","Nordstrand","Aspirant","Nei"]
[null,"Vega Skog Gamme","Oslo","Aspirant","Nei",null,null,"Hailie Sophie Sundal Ormaasen","Nordstrand","Aspirant","Nei"]
[null,"Lucia Tomaselli Vangsnes","Oslo","Aspirant","Nei",null,null,"Othilie Marie Strøm-Håkonsen","Oslo","Aspirant","Nei"]
[null,"Emilie Vibekk","Oslo","Aspirant","Nei",null,null,"Isobelle Angelica Skarpsno Ellingsen","Oslo","Aspirant","Nei"]
[null,"Clara Huguet","Oslo","Aspirant","Nei",null,null,"Isabell Selma Bergmann","Oslo","Aspirant","Nei"]
[null,"Sienna Olsen","Oslo","Aspirant","Nei",null,null,"Mathea Hagensen Holberg","Oslo","Aspirant","Nei"]
[null,"Evelyn Augusta Løkkevik Werring","Oslo","Aspirant","Nei",null,null,"Anya Sofia Egri","Oslo","Aspirant","Nei"]
[null,"Lydia Østensen Karlsen","Oslo","Aspirant","Nei"]
[]
["Antall",{"$f":"COUNTA(B26:B43)","v":17},{"$nulls":4},"Antall",{"$f":"COUNTA(H26:H43)","v":16}]
[]
["GRUPPE 5",{"$nulls":5},"GRUPPE 6 "]
["STARTNR.","NAVN","KLUBB","Klasse","Musikk",null,"STARTNR.","NAVN","KLUBB","Klasse","Musikk"]
[null,"Katinka Nybråten","Slemmestad","Aspirant","Ja",null,null,"Sophia Bogoev","Slemmestad","Aspirant","Ja"]
[null,"Jenny Asdal Ward","Slemmestad","Aspirant","Ja",null,null,"Linja Thingnes Sander","Slemmestad","Aspirant","Ja"]
[null,"Malin Mathinsen","Slemmestad","Aspirant","Ja",null,null,"Tilde Victoria Broken","Slemmestad","Aspirant","Ja"]
[null,"Mathea Hautau Annaniassen","Slemmestad","Aspirant","Ja",null,null,"Gaivile Urbonaite","Slemmestad","Aspirant","Ja"]
[null,"Mille Svartis Roos","Slemmestad","Aspirant","Ja",null,null,"Maja Haugbro Karlsrud","Langhus","Aspirant","Ja"]
[null,"Ariel Frogner","Slemmestad","Aspirant","Ja",null,null,"Celine Kindle-Skau","Langhus","Aspirant","Nei"]
[null,"Sanna Lauritsen","Slemmestad","Aspirant","Ja",null,null,"Natalia Graunte","Langhus","Aspirant","Nei"]
[null,"Margrethe Heitmann-Young","Slemmestad","Aspirant","Ja",null,null,"Nora Lundby","Langhus","Aspirant","Nei"]
[null,"Frøya Kolev","Slemmestad","Aspirant","Ja",null,null,"Olava Kjønniksen","Langhus","Aspirant","Nei"]
[null,"Emilie Leona Hoff","Slemmestad","Aspirant","Ja",null,null,"Tirill Dahlen Berge","Langhus","Aspirant","Nei"]
[null,"Caroline Moe Sibbern","Slemmestad","Aspirant","Nei",null,null,"Charlotte Olivia Scheuer","Langhus","Aspirant","Nei"]
[null,"Sofia Brusletto","Slemmestad","Aspirant","Nei",null,null,"Johanne Muribø","Langhus","Aspirant","Nei"]
[null,"Oda Engvold","Slemmestad","Aspirant","Nei",null,null,"Michelle Boge Haugen","Langhus","Aspirant","Nei"]
[{"$nulls":7},"Sanna Charlotte Grande-Drage","Langhus","Aspirant","Nei"]
[{"$nulls":7},"Anna Aase Grobakken Grimstad","Langhus","Aspirant","Nei"]
[{"$nulls":7},"Lilja Strupestad Sørli","Langhus","Aspirant","Nei"]
[{"$nulls":7},"Ivi Johansen","Langhus","Aspirant","Nei"]
[]
["Antall",{"$f":"COUNTA(B48:B65)","v":13},{"$nulls":4},"Antall",{"$f":"COUNTA(H48:H65)","v":17}]
[]
["GRUPPE 7 ",{"$nulls":5},"GRUPPE 8 "]
["STARTNR.","NAVN","KLUBB","Klasse","Musikk",null,"STARTNR.","NAVN","KLUBB","Klasse","Musikk"]
[null,"Zara Tahir","Sandvika","Aspirant","Ja",null,null,"Cornelia Bach Liff","Sandvika","Aspirant","Ja"]
[null,"Mira Mikova","Sandvika","Aspirant","Ja",null,null,"Joanna Verweij Belmonte","Sandvika","Aspirant","Ja"]
[null,"Alexandra Pannu Faafeng","Sandvika","Aspirant","Ja",null,null,"Leonora Volstad","Sandvika","Aspirant","Ja"]
[null,"Maja Erna Møller","Sandvika","Aspirant","Ja",null,null,"Alvilde Aune Mediaa","Sandvika","Aspirant","Ja"]
[null,"Iben Bø Notevarp","Sandvika","Aspirant","Ja",null,null,"Emilie Ek-Harvorsen","Sandvika","Aspirant","Ja"]
[null,"Amanda Suleng","Sandvika","Aspirant","Ja",null,null,"Iben Kallevig","Sandvika","Aspirant","Ja"]
[null,"Natalie Soto-Moen","Sandvika","Aspirant","Ja",null,null,"Frida Horntvedt Stabrun","Sandvika","Aspirant","Ja"]
[null,"Elise Aandstad","Sandvika","Aspirant","Ja",null,null,"Maria Elise Bogoev","Sandvika","Aspirant","Ja"]
[null,"Natalie Madelen Jakobsen","Sandvika","Aspirant","Ja",null,null,"Sophia Munch","Sandvika","Aspirant","Ja"]
[null,"Louise Kalheim","Nordre Aker","Aspirant","Ja",null,null,"Live Bergslien","Sandvika","Aspirant","Ja"]
[null,"Lilli Helmen Grooth","Nordre Aker","Aspirant","Nei",null,null,"Emma Nilsson Espevalen","Sandvika","Aspirant","Nei"]
[null,"Emily Østvold Aamodt","Nordre Aker","Aspirant","Nei"]
[null,"Ellinor Skjelbred Lensjø","Nordre Aker","Aspirant","Nei"]
[]
[]
["Antall",{"$f":"COUNTA(B70:B84)","v":13},{"$nulls":4},"Antall",{"$f":"COUNTA(H70:H84)","v":11}]
[]
[]
["Totalt antall gymnaster",{"$f":"+B22+H22+B44+H44+B66+H66+B85+H85","v":118}]
[]
[]
["PULJE 2: Aspirantoppvisning "]
[]
["GRUPPE 9 ",{"$nulls":5},"GRUPPE 10 "]
["STARTNR.","NAVN","KLUBB","Klasse","Musikk",null,"STARTNR.","NAVN","KLUBB","Klasse","Musikk"]
[null,"Tuva Røsjø","Drøbak Frogn","Aspirant","Ja",null,null,"Leah Asklien","Nedre Glomma","Aspirant","Ja"]
[null,"Emily Olsen","Drøbak Frogn","Aspirant","Ja",null,null,"Stella Olivia Norsted","Nedre Glomma","Aspirant","Ja"]
[null,"Nora Torrissen Hansen","Drøbak Frogn","Aspirant","Ja",null,null,"Amalie Engebretsen","Nedre Glomma","Aspirant","Nei"]
[null,"Mathilde Fornes Benserud","Drøbak Frogn","Aspirant","Ja",null,null,"Amira Kazmouz","Nedre Glomma","Aspirant","Nei"]
[null,"Sannah Trosterud","Drøbak Frogn","Aspirant","Ja",null,null,"Maiken Bredenbekk","Nedre Glomma","Aspirant","Nei"]
[null,"Liv Bakke","Drøbak Frogn","Aspirant","Nei",null,null,"Mille Navestad","Nedre Glomma","Aspirant","Nei"]
[null,"Hannah Giselle Peikert","Drøbak Frogn","Aspirant","Nei",null,null,"Thilde Øistad","Nedre Glomma","Aspirant","Nei"]
[null,"Selma Magnussen Krogvold","Drøbak Frogn","Aspirant","Nei",null,null,"Wilmine Myrene","Nedre Glomma","Aspirant","Nei"]
[null,"Meline Magistad","Drøbak Frogn","Aspirant","Nei",null,null,"Julie Martiniussen","Nedre Glomma","Aspirant","Nei"]
[null,"Mathilde Meholm-Dalsegg","Drøbak Frogn","Aspirant","Nei",null,null,"Kiara Huseby","Nedre Glomma","Aspirant","Nei"]
[null,"Victoria Pent Liedholm","Drøbak Frogn","Aspirant","Nei",null,null,"Leah Oline Olsen","Nedre Glomma","Aspirant","Nei"]
[null,"Elise Wang Pedersen","HSIL","Aspirant","Nei",null,null,"Alba Horn","Nedre Glomma","Aspirant","Nei"]
[null,"Michela Sophie Bergli","HSIL","Aspirant","Nei",null,null,"Sara Capile","HSIL","Aspirant","Nei"]
[null,"Alice Gjerdset Edward","HSIL","Aspirant","Nei",null,null,"Sofie Bjørnstad Ulland","HSIL","Aspirant","Nei"]
[null,"Emma Kovacevic Krnjic","HSIL","Aspirant","Nei",null,null,"Dagny Moen-Daae","HSIL","Aspirant","Nei"]
[null,"Eva Skaug Knudsen","HSIL","Aspirant","Nei",null,null,"Melissa Mihalik","HSIL","Aspirant","Nei"]
[null,"Thilde Wierli Dyvik","HSIL","Aspirant","Nei",null,null,"Live Berina Gaalaas-Coralic","HSIL","Aspirant","Nei"]
[null,"Natalia Kinga Bortko","HSIL","Aspirant","Nei",null,null,"Ellie Adelén Stiansdottir Bendiksen","HSIL","Aspirant","Nei"]
[]
["Antall",{"$f":"COUNTA(B95:B113)","v":18},{"$nulls":4},"Antall",{"$f":"COUNTA(H95:H113)","v":18}]
[]
["GRUPPE 11 ",{"$nulls":5},"GRUPPE 12 "]
["STARTNR.","NAVN","KLUBB","Klasse","Musikk",null,"STARTNR.","NAVN","KLUBB","Klasse","Musikk"]
[null,"Silje Lie","Drammen","Aspirant","Ja",null,null,"Lotte Sørensen","Drammen","Aspirant","Ja"]
[null,"Emilie Lie","Drammen","Aspirant","Ja",null,null,"Frida Abelseth","Drammen","Aspirant","Ja"]
[null,"Ellie Lund","Drammen","Aspirant","Ja",null,null,"Helena Mijesic","Drammen","Aspirant","Ja"]
[null,"Julie Stenersen","Drammen","Aspirant","Ja",null,null,"Emilia Glasek","Drammen","Aspirant","Ja"]
[null,"Angelica Langeli","Drammen","Aspirant","Ja",null,null,"Milica Tokanovic","Drammen","Aspirant","Nei"]
[null,"Selma Riisøen","Drammen","Aspirant","Ja",null,null,"Iben Van der Laan","Drammen","Aspirant","Nei"]
[null,"Hennie Abusdal","Drammen","Aspirant","Ja",null,null,"Alia Ebrahim","Drammen","Aspirant","Nei"]
[null,"Solveig Lolland Iversen","Drammen","Aspirant","Ja",null,null,"Alyssa Wang","Drammen","Aspirant","Nei"]
[null,"Vår Smith Fosnæs","Hokksund","Aspirant","Ja",null,null,"Hennie Barth Ellefsen","Drammen","Aspirant","Nei"]
[null,"Ingvild Tro","Hokksund","Aspirant","Ja",null,null,"Stella Pahr-Backe","Drammen","Aspirant","Nei"]
[null,"Emine Øverås","Hokksund","Aspirant","Ja",null,null,"Sara Kuci","Drammen","Aspirant","Nei"]
[null,"Milla Oktavia Sørum","Hokksund","Aspirant","Nei",null,null,"Ela Helene Koch Voilås","Fredrikshald","Aspirant","Nei"]
[null,"Vilje Smith Fosnæs","Hokksund","Aspirant","Nei",null,null,"Claudia Copete - Gomariz","Fredrikshald","Aspirant","Nei"]
[null,"Pernille Østli","Hokksund","Aspirant","Nei",null,null,"Wilma Marie Pedersen","Fredrikshald","Aspirant","Nei"]
[null,"Vanessa Norli","Hokksund","Aspirant","Nei",null,null,"Adine Sofie Sandnes - Olsen","Fredrikshald","Aspirant","Nei"]
[]
["Antall",{"$f":"COUNTA(B118:B133)","v":15},{"$nulls":4},"Antall",{"$f":"COUNTA(H118:H133)","v":15}]
[]
["GRUPPE 13 ",{"$nulls":5},"GRUPPE 14"]
["STARTNR.","NAVN","KLUBB","Klasse","Musikk",null,"STARTNR.","NAVN","KLUBB","Klasse","Musikk"]
[null,"Ellinor Sandbakken","Asker","Aspirant","Ja",null,null,"Emilie Sofie Nordvik","Asker","Aspirant","Ja"]
[null,"Amalia Bakken","Asker","Aspirant","Ja",null,null,"Una Fonneland","Asker","Aspirant","Ja"]
[null,"Iben Bjerregaard Johansen","Asker","Aspirant","Ja",null,null,"Ulrikke Thorvaldsen Polzin","Asker","Aspirant","Ja"]
[null,"Signe Nyberg","Asker","Aspirant","Ja",null,null,"Diana Yalda","Asker","Aspirant","Ja"]
[null,"Maria Faizullina","Asker","Aspirant","Ja",null,null,"Ameli Dzanic","Asker","Aspirant","Ja"]
[null,"Neve Kuzmijak","Asker","Aspirant","Ja",null,null,"Marie Nikolaisen","Asker","Aspirant","Ja"]
[null,"Marie Lein Oppegaard","Asker","Aspirant","Ja - 1",null,null,"Victoria Hegland Hestø","Asker","Aspirant","Ja"]
[null,"Louise Hovde-Hagen","Asker","Aspirant","Ja - 1",null,null,"Jenny Løken Holte","Asker","Aspirant","Ja"]
[null,"Lykke Amélie Solberg","Asker","Aspirant","Ja - 1",null,null,"Ella Tufte Jerndahl","Asker","Aspirant","Ja"]
[null,"Rikke Sæbø","Asker","Aspirant","Ja - 1",null,null,"Oda Myrvold","Asker","Aspirant","Ja - 3"]
[null,"Aileen Baktiguzina","Asker","Aspirant","Ja - 1",null,null,"Emilia Adeline Knudsen","Asker","Aspirant","Ja - 3"]
[null,"Emine Boldevin","Asker","Aspirant","Ja - 1",null,null,"Sasha Kuzmijak","Asker","Aspirant","Ja - 3"]
[null,"Sonja Lampe Nævestad","Asker","Aspirant","Ja - 1",null,null,"Emmie Mariasson Stanghov","Asker","Aspirant","Ja - 5"]
[null,"Thea Bakken","Asker","Aspirant","Ja - 2",null,null,"Shanel Kanaj","Asker","Aspirant","Ja - 5"]
[null,"Ella Bakken","Asker","Aspirant","Ja - 2"]
[]
["Antall",{"$f":"COUNTA(B138:B153)","v":15},{"$nulls":4},"Antall",{"$f":"COUNTA(H138:H153)","v":14}]
[]
["GRUPPE 15 ",{"$nulls":5},"GRUPPE 16"]
["STARTNR.","NAVN","KLUBB","Klasse","Musikk",null,"STARTNR.","NAVN","KLUBB","Klasse","Musikk"]
[null,"Emilie Polhleb","Asker","Aspirant","Ja - 4",null,null,"Martina Nedyalkova","Hoppensprett","Aspirant","Ja"]
[null,"Dagny Hanna Traustadottir","Asker","Aspirant","Ja - 4",null,null,"Claudia Elias","Hoppensprett","Aspirant","Ja"]
[null,"Arna Foudjar","Asker","Aspirant","Ja - 4",null,null,"Amina Imran -Shafi","Hoppensprett","Aspirant","Ja"]
[null,"Nika Sophie Lier","Asker","Aspirant","Ja - 4",null,null,"Imaaya Yeragaselvan","Hoppensprett","Aspirant","Ja"]
[null,"Josefine Munthe-Kaas","Asker","Aspirant","Ja - 4",null,null,"Norah Rotnebo Hansen","Hoppensprett","Aspirant","Ja"]
[null,"Mathilda Hommefoss","Asker","Aspirant","Ja - 4",null,null,"Ines Zerbane","Hoppensprett","Aspirant","Ja"]
[null,"Marthe Raddum Dahlberg","Gjelleråsen","Aspirant","Ja",null,null,"Luciana Heimonen","Hoppensprett","Aspirant","Ja"]
[null,"Kaya Imogen Austrem Bunger","Gjelleråsen","Aspirant","Ja",null,null,"Nora Grønland Danielsen","Hoppensprett","Aspirant","Ja"]
[null,"Lara Eliva Alie Guttormsen Brandenberger","Gjelleråsen","Aspirant","Ja",null,null,"Chanel Nårstad","Hoppensprett","Aspirant","Ja"]
[null,"Estella Liaklev Grimstad","Gjelleråsen","Aspirant","Ja",null,null,"Varvara Shubina","Hoppensprett","Aspirant","Ja"]
[null,"Elea anne Gullberg","Gjelleråsen","Aspirant","Ja",null,null,"Iben Bråten","Hoppensprett","Aspirant","Ja"]
[null,"Elida Tranvåg","Gjelleråsen","Aspirant","Ja",null,null,"Emeli Angelovski","Hoppensprett","Aspirant","Ja"]
[null,"Emma Isabel Sem-Ullerflaen","Gjelleråsen","Aspirant","Ja"]
[null,"Amanda Blegeberg","Gjelleråsen","Aspirant","Nei"]
[null,"Emma Olivia Taihaugen-Eyde","Gjelleråsen","Aspirant","Nei"]
[null,"Nora Aimee Engan Deunk","Gjelleråsen","Aspirant","Nei"]
[null,"Ida Neef","Gjelleråsen","Aspirant","Nei"]
[]
[]
[]
[]
["Antall",{"$f":"COUNTA(B158:B178)","v":17},{"$nulls":4},"Antall",{"$f":"COUNTA(H158:H178)","v":12}]
[]
[]
[]
[]
["Totalt antall pulje 2",{"$f":"+B114+H114+B134+H134+B154+H154+B179+H179","v":124}]
["Totalt antall søndag",{"$f":"+B88+B184","v":242}]